bitfinex-derivatives/quotes_ETHF0:USTF0_20210111
["timestamp","ask_amount","ask_price","bid_price","bid_amount"]
[1610395943163,12.59979238,975.67,975.4,2.0243]
[1610395943361,12.59979238,975.67,975.66,4.00959]
[1610395943763,4.29210581,975.67,975.66,4.00959]
[1610395943962,5.98772525,975.93,975.66,4.00959]
[1610395944162,5.99346522,976.0,975.66,4.00959]
[1610395944362,5.99346522,976.0,974.8,76.5521]
[1610395944563,8.38593922,975.87,974.8,76.5521]
[1610395944964,8.38593922,975.87,975.13,2.0397]
[1610395945163,8.37205089,975.7,975.13,2.0397]
[1610395945363,8.37205089,975.7,975.69,4.00959]
[1610395945565,8.37721258,975.79,975.69,4.00959]
[1610395945765,2.133,975.82,975.69,4.00959]
[1610395946363,10.78682594,975.77,974.94,2.232]
[1610395946763,2.133,975.82,974.94,2.232]
[1610395947165,0.2175,975.82,975.15,2.0467]
[1610395947365,0.2175,975.82,975.81,4.00959]
[1610395947765,0.2175,975.82,974.94,2.232]
[1610395948367,0.2175,975.82,974.49,0.31240338]
[1610395948767,0.2175,975.82,974.54,2.0279]
[1610395948966,0.2175,975.82,974.28,0.31245943]
[1610395949167,0.2175,975.82,974.3,0.31246618]
[1610395949366,0.2175,975.82,975.35,4.00959]
[1610395950367,1.804,976.02,975.35,4.00959]
[1610395950666,2.178,976.38,975.35,4.00959]
[1610395950869,59.0371,976.98,975.35,4.00959]
[1610395951469,59.0371,976.98,975.19,4.00959]
[1610395951470,4.00959,976.16,975.19,4.00959]
[1610395951671,5.55359,976.16,974.85,1.998]
[1610395952271,5.55359,976.16,974.72,63.8109]
[1610395953171,1.544,976.16,974.72,63.8109]
[1610395953374,1.544,976.16,975.52,4.00959]
[1610395954071,1.544,976.16,974.26,0.31251348]
[1610395954072,1.544,976.16,974.28,0.31250667]
[1610395954472,1.544,976.16,974.21,2.0774]
[1610395955473,1.544,976.16,975.97,4.00959]
[1610395956775,1.98059,981.27,975.97,4.00959]
[1610395956976,83.4397,978.1,975.97,4.00959]
[1610395957378,4.00959,976.7,976.27,4.00959]
[1610395958077,4.00959,976.7,975.22,2.091]
[1610395958277,8.5313,976.44,975.22,2.091]
[1610395959477,8.5313,976.44,976.43,4.00959]
[1610395959677,8.5313,976.44,975.51,1.578]
[1610395962383,8.5313,976.44,974.93,1.542]
[1610395962583,8.5313,976.44,974.47,0.93730734]
[1610395962792,8.5313,976.44,972.62,2.0575]
[1610395962793,64.6668,976.24,974.45,0.93726104]
[1610395962983,2.0277,976.23,974.45,0.93726104]
[1610395963184,2.0277,976.23,974.08,0.93764031]
[1610395963587,4.00959,974.75,974.43,4.00959]
[1610395963783,6.30459,974.75,974.43,4.00959]
[1610395964386,2.295,974.75,974.43,4.00959]
[1610395964785,2.295,974.75,973.49,0.93806103]
[1610395965587,1.96,974.97,974.74,4.00959]
[1610395966986,11.9708,975.42,974.74,4.00959]
[1610395967587,11.9708,975.42,975.41,4.00959]
[1610395967785,11.9708,975.42,974.6,2.443]
[1610395968587,11.9708,975.42,974.41,0.93741423]
[1610395968790,11.9708,975.42,974.48,0.31252142]
[1610395969187,11.9708,975.42,974.07,0.31258405]
[1610395969388,11.9708,975.42,974.09,0.31261139]
[1610395969588,4.00959,974.62,974.21,4.00959]
[1610395969790,4.00959,974.62,973.79,1.25044556]
[1610395969791,4.00959,974.62,973.97,0.31262522]
[1610395970690,4.00959,974.62,973.85,0.31267419]
[1610395971090,4.00959,974.62,973.8,0.31270497]
[1610395971490,4.00959,974.22,973.89,4.00959]
[1610395971891,4.00959,974.22,973.76,0.31277853]
[1610395972090,4.00959,974.22,973.57,0.93833558]
[1610395972091,4.00959,974.22,973.66,0.31277539]
[1610395972691,4.00959,974.22,973.64,0.31279116]
[1610395973091,4.00959,974.22,973.54,0.31282734]
[1610395973291,4.00959,974.22,973.43,0.31288789]
[1610395973492,4.00959,973.53,973.43,0.31288789]
[1610395973692,4.00959,973.53,973.26,0.31293466]
[1610395974094,6.23559,973.53,973.05,0.31298083]
[1610395974494,6.23559,973.53,972.8,0.31306383]
[1610395975094,2.226,973.53,972.8,0.31306383]
[1610395975496,4.00959,973.5,973.3,4.00959]
[1610395975896,4.00959,973.5,973.0,0.3130339]
[1610395976296,4.00959,973.5,972.98,0.31305027]
[1610395976697,4.00959,973.5,972.84,0.31307478]
[1610395976895,4.00959,973.5,972.78,0.31309837]
[1610395977296,4.00959,973.5,972.63,0.31310185]
[1610395977497,4.00959,972.91,972.63,0.31310185]
[1610395977698,4.00959,972.91,972.81,0.62621953]
[1610395978198,4.00959,972.91,972.9,0.31309427]
[1610395978398,2.142,973.3,972.9,0.31309427]
[1610395978798,0.2,973.0,972.9,0.31309427]
[1610395979401,0.2,973.0,972.51,1.56547137]
[1610395979402,0.2,973.0,972.92,0.93921015]
[1610395979600,4.00959,972.97,972.92,0.93921015]
[1610395979800,4.00959,972.97,972.88,0.93917356]
[1610395980202,4.00959,972.97,972.88,0.62615143]
[1610395980500,4.00959,972.97,972.55,2.209]
[1610395980501,4.00959,972.97,972.9,0.62612244]
[1610395980901,0.2,973.0,972.9,0.62612244]
[1610395981101,0.2,973.0,972.92,0.62613501]
[1610395981502,0.2,973.0,972.97,0.3130704]
[1610395982306,0.2,973.0,972.58,1.56535198]
[1610395982307,0.2,973.0,972.96,0.31308673]
[1610395982606,0.2,973.0,972.94,0.62611611]
[1610395983108,0.2,973.0,972.9,0.93918444]
[1610395983808,0.2,973.0,972.89,0.31310841]
[1610395984225,0.2,973.0,972.82,0.31313282]
[1610395985211,0.2,973.0,972.83,0.31314596]
[1610395985615,0.2,973.0,972.87,0.31312674]
[1610395986013,0.2,973.0,972.78,0.62625347]
[1610395986014,0.2,973.0,972.88,0.31312568]
[1610395986414,0.2,973.0,972.85,0.31313505]
[1610395986614,0.2,973.0,972.8,0.31315191]
[1610395987014,0.2,973.0,972.73,0.3131669]
[1610395987415,0.2,973.0,972.7,0.31318703]
[1610395988216,4.00959,972.71,972.7,0.31318703]
[1610395988417,4.00959,972.71,972.68,0.3131949]
[1610395988824,4.00959,972.71,972.6,0.31321994]
[1610395989231,4.00959,972.71,972.57,0.31324955]
[1610395989426,4.00959,972.71,972.53,0.31324853]
[1610395990226,4.00959,972.54,972.53,0.31324853]
[1610395990424,4.00959,972.54,972.44,0.62647665]
[1610395990823,4.00959,972.54,972.52,0.62642731]
[1610395991226,4.00959,972.54,972.1,2.442]
[1610395991227,4.00959,972.54,972.45,0.62646018]
[1610395991623,4.00959,972.54,972.52,0.31324376]
[1610395991828,4.00959,972.54,972.5,0.31327293]
[1610395992224,4.00959,972.54,972.52,0.31325904]
[1610395992626,4.00959,972.54,972.44,0.62648522]
[1610395993025,4.00959,972.54,972.51,0.62647474]
[1610395993235,4.00959,972.54,972.5,0.62647199]
[1610395993430,2.25,972.9,972.5,0.62647199]
[1610395993626,2.25,972.9,972.46,0.9396757]
[1610395993827,6.1659,972.99,972.46,0.9396757]
[1610395994024,6.1659,972.99,972.68,0.31321355]
[1610395994424,6.1659,972.99,972.47,0.93967378]
[1610395994824,6.1659,972.99,972.7,0.31321402]
[1610395995225,6.1659,972.99,972.67,0.31322457]
[1610395995425,6.1659,972.99,972.64,0.31323751]
[1610395995725,6.1659,972.99,972.58,0.31323838]
[1610395996126,4.00959,972.59,972.57,0.31324723]
[1610395996526,4.00959,972.59,972.56,0.31324942]
[1610395996929,4.00959,972.59,972.5,0.62648629]
[1610395997131,4.00959,972.59,972.55,0.62645378]
[1610395997530,4.00959,972.59,972.56,0.62642372]
[1610395997930,4.00959,972.59,972.58,0.62642091]
[1610395998131,4.00959,972.59,972.29,1.56605228]
[1610395998132,4.00959,972.59,972.54,0.62643079]
[1610395998631,4.00959,972.59,972.52,0.62643771]
[1610395998831,4.00959,972.59,972.51,0.62642668]
[1610395999632,4.00959,972.59,972.54,0.3132293]
[1610395999831,4.00959,972.59,972.5,0.31324219]
[1610396000232,4.00959,972.59,972.46,0.31325539]
[1610396000631,4.00959,972.59,972.45,0.3132724]
[1610396001031,4.00959,972.59,972.42,0.31327804]
[1610396001232,4.00959,972.59,972.4,0.31329068]
[1610396001936,4.00959,972.59,972.43,0.31329412]
[1610396002136,2.219,972.74,972.43,0.31329412]
[1610396002337,6.1659,972.99,972.43,0.31329412]
[1610396002536,6.1659,972.99,972.47,0.31326499]
[1610396002936,6.1659,972.99,972.53,0.31323108]
[1610396003236,6.1659,972.99,972.62,0.31322285]
[1610396003637,6.1659,972.99,972.64,0.31321477]
[1610396004038,6.1659,972.99,972.6,0.31321858]
[1610396004238,4.00959,972.61,972.57,0.31322582]
[1610396004640,4.00959,972.61,972.54,0.62640971]
[1610396004839,6.1659,972.99,972.54,0.62640971]
[1610396005039,6.1659,972.99,972.58,0.62637273]
[1610396005239,6.1659,972.99,972.76,0.31316533]
[1610396005639,6.1659,972.99,972.79,0.31315954]
[1610396006040,6.1659,972.99,972.81,0.31315681]
[1610396006239,4.00959,972.82,972.81,0.31315681]
[1610396006440,4.00959,972.82,972.8,0.31315139]
[1610396007242,4.00959,972.82,972.76,0.31316646]
[1610396007441,6.1659,972.99,972.77,0.31316719]
[1610396007841,6.1659,972.99,972.73,0.62626604]
[1610396008243,6.1659,972.99,972.98,4.00959]
[1610396008443,6.1659,972.99,972.96,0.3130932]
[1610396008644,6.1659,972.99,972.89,0.62618165]
[1610396009042,6.1659,972.99,972.9,0.62613128]
[1610396009443,6.1659,972.99,972.96,0.62612221]
[1610396009643,6.1659,972.99,972.97,0.62612034]
[1610396009844,6.1659,972.99,972.98,0.62611975]
[1610396010143,6.1659,972.99,972.98,4.63570975]
[1610396010543,6.1659,972.99,972.98,4.00959]
[1610396012146,6.1659,972.99,972.95,0.93908822]
[1610396012546,6.1659,972.99,972.92,0.93911431]
[1610396012946,6.1659,972.99,972.96,0.62614814]
[1610396013348,6.1659,972.99,972.93,0.31312016]
[1610396013547,8.1869,972.99,972.93,0.31312016]
[1610396013747,8.1869,972.99,972.81,0.31315606]
[1610396014147,8.1869,972.99,972.43,1.5657803]
[1610396014148,4.00959,972.82,972.64,0.31318781]
[1610396014347,10.285,972.77,972.64,0.31318781]
[1610396014550,65.9787,972.67,972.65,0.31319623]
[1610396014947,65.9787,972.67,972.53,0.31323266]
[1610396015147,2.068,972.76,972.53,0.31323266]
[1610396015547,2.068,972.76,972.36,0.31327949]
[1610396015747,74.2542,972.44,972.36,0.31327949]
[1610396015948,76.5992,972.44,972.36,0.31327949]
[1610396016148,76.5992,972.44,972.26,0.41993846]
[1610396016348,76.5992,972.44,971.93,0.62671543]
[1610396016349,4.00959,972.27,971.93,0.62671543]
[1610396016748,75.6326,971.94,971.93,0.62671543]
[1610396016951,77.1706,971.94,971.04,1.9758755]
[1610396017150,1.538,971.94,971.04,7.55e-05]
[1610396017350,74.3675,971.44,970.85,1.88135866]
[1610396017551,1.671,971.44,970.65,1.99493688]
[1610396017750,1.671,971.44,970.46,3.13559777]
[1610396017751,66.9845,970.82,970.46,2.87143465]
[1610396017951,66.9845,970.82,970.06,3.13634137]
[1610396018351,4.00959,970.07,970.06,3.13634137]
[1610396018952,4.00959,970.07,969.85,3.13715228]
[1610396019553,4.00959,970.07,969.43,4.00959]
[1610396019753,2.0509,970.06,969.43,4.00959]
[1610396019953,4.00959,970.07,969.43,4.00959]
[1610396020154,4.00959,970.07,969.43,6.37859]
[1610396020353,4.00959,969.84,969.75,4.00959]
[1610396020554,4.00959,969.84,969.43,2.369]
[1610396022358,4.00959,969.55,969.43,2.369]
[1610396022558,4.00959,969.55,969.43,1.2076]
[1610396024463,4.00959,969.44,969.43,1.2076]
[1610396025162,4.00959,969.44,968.51,3.76941363]
[1610396025366,66.3845,969.26,968.51,3.76941363]
[1610396025763,66.3845,969.26,968.42,3.76995669]
[1610396026364,66.3845,969.26,969.16,0.31423401]
[1610396026765,66.3845,969.26,969.12,0.31424537]
[1610396027164,66.3845,969.26,969.1,0.31424207]
[1610396027465,66.3845,969.26,969.12,0.31424662]
[1610396027866,66.3845,969.26,969.05,0.31426623]
[1610396028265,66.3845,969.26,968.94,0.31429649]
[1610396028464,4.00959,968.95,968.85,0.62859298]
[1610396028865,4.00959,968.95,968.86,0.62863432]
[1610396029570,4.00959,968.95,968.87,0.62867329]
[1610396030270,4.00959,968.95,968.92,0.31434283]
[1610396030670,4.00959,968.95,968.88,0.31435096]
[1610396031072,4.00959,968.95,968.91,0.31434919]
[1610396031471,4.00959,968.95,968.85,0.31436309]
[1610396031670,9.35,968.94,968.85,0.31436309]
[1610396031871,71.0482,968.86,968.84,0.31436814]
[1610396032271,71.0482,968.86,968.74,0.31436681]
[1610396032471,4.00959,968.75,968.74,0.31436681]
[1610396032671,4.00959,968.75,968.7,0.31439515]
[1610396033072,4.00959,968.75,968.41,1.25758061]
[1610396033073,4.00959,968.75,968.69,0.31437986]
[1610396033273,4.00959,968.75,968.71,0.31440363]
[1610396033672,4.00959,968.75,968.61,0.31442333]
[1610396033872,81.8324,968.72,968.38,1.49594]
[1610396034076,81.8324,968.72,968.53,0.31444063]
[1610396034474,4.00959,968.54,968.4,1.531]
[1610396034673,4.00959,968.54,968.4,0.2446]
[1610396034872,75.6699,968.41,968.4,0.2446]
[1610396036574,79.67949,968.41,968.4,0.2446]
[1610396036975,79.67949,968.41,967.96,0.94378302]
[1610396037375,79.67949,968.41,967.89,0.94390403]
[1610396037575,6.05449,968.41,967.8,0.13244273]
[1610396037776,83.6619,967.81,967.8,0.13244273]
[1610396037975,83.6619,967.81,967.69,0.94404508]
[1610396038277,83.6619,967.81,967.53,1.57358763]
[1610396038478,4.00959,967.54,967.53,1.57358763]
[1610396038675,12.47479,967.54,967.45,1.57358468]
[1610396038875,4.00959,967.54,967.45,1.57358468]
[1610396039175,71.4268,967.46,967.45,1.57358468]
[1610396039376,71.4268,967.46,967.34,1.57380648]
[1610396039575,71.4268,967.46,967.34,0.02380648]
[1610396039776,71.4268,967.46,966.74,1.88914594]
[1610396040175,71.4268,967.46,966.77,1.88911073]
[1610396040376,71.4268,967.46,966.77,4.10811073]
[1610396040575,71.4268,967.46,966.79,1.88915477]
[1610396040779,71.4268,967.46,966.82,1.88912785]
[1610396041277,2.037,967.82,966.82,1.88912785]
[1610396041477,68.5979,968.41,966.83,1.88898939]
[1610396041877,66.553,968.41,966.97,1.88887242]
[1610396042077,2.0784,968.97,967.08,1.88842605]
[1610396042287,8.27045798,968.27,967.08,1.88842605]
[1610396042489,8.27045798,968.27,967.59,4.00959]
[1610396042678,8.27045798,968.27,967.59,6.18259]
[1610396042878,12.2992,968.96,967.59,6.18259]
[1610396043279,12.2992,968.96,967.68,1.88735365]
[1610396043579,12.2992,968.96,967.79,1.88729011]
[1610396043779,2.0356,969.87,967.79,3.80029011]
[1610396043979,2.0356,969.87,968.39,0.62902929]
[1610396044180,6.3401,969.81,968.39,2.75802929]
[1610396044379,8.6441,969.81,968.56,0.62899246]
[1610396044580,8.6441,969.81,968.93,4.00959]
[1610396044981,8.6441,969.81,968.93,5.78559]
[1610396045382,8.6441,969.81,969.13,0.31433906]
[1610396045582,76.8322,970.58,969.37,0.31424207]
[1610396045783,2.0747,971.03,969.37,1.83524207]
[1610396045982,6.4413,971.02,969.47,0.3142033]
[1610396046182,8.3293,971.02,969.47,0.3142033]
[1610396046382,8.3293,971.02,969.68,0.31412559]
[1610396046582,4.00959,970.27,969.68,2.40712559]
[1610396046783,4.00959,970.27,969.87,0.31408705]
[1610396046984,4.00959,970.27,969.92,0.31406642]
[1610396047185,6.4413,971.02,969.92,1.96106642]
[1610396047387,1.746,971.49,969.92,1.96106642]
[1610396047388,1.746,971.49,970.03,0.31400661]
[1610396047785,1.746,971.49,970.18,0.31395522]
[1610396047986,6.3165,971.63,970.18,2.50995522]
[1610396048185,84.8854,972.11,970.53,0.31388134]
[1610396048386,84.8854,972.11,970.53,1.92488134]
[1610396048585,4.00959,971.34,970.53,1.92488134]
[1610396048784,4.00959,971.34,970.72,0.31380619]
[1610396048984,84.8854,972.11,970.84,0.3137439]
[1610396049184,5.9119,972.47,970.84,2.1567439]
[1610396049385,5.9119,972.47,970.92,0.31370259]
[1610396049585,78.8703,973.16,970.92,0.31370259]
[1610396049787,78.8703,973.16,970.84,1.843]
[1610396049788,32.0432,973.06,971.23,0.31362298]
[1610396049989,32.0432,973.06,971.23,1.644]
[1610396050385,2.0432,973.06,971.23,1.644]
[1610396050586,4.00959,971.24,971.23,1.644]
[1610396050785,1.545,972.76,971.23,1.644]
[1610396050987,1.545,972.76,971.26,0.31360624]
[1610396051384,1.545,972.76,971.23,1.644]
[1610396051385,11.2064,972.75,971.28,0.31361154]
[1610396051584,41.2064,972.75,971.28,0.31361154]
[1610396051785,41.2064,972.75,971.23,1.644]
[1610396051984,13.2691,972.75,971.23,1.644]
[1610396052488,11.2064,972.75,971.23,1.644]
[1610396053291,11.2064,972.75,971.24,0.31361795]
[1610396053491,2.0802,972.74,971.23,1.644]
[1610396054388,2.0802,972.74,971.03,0.31368671]
[1610396054589,4.00959,971.04,970.99,0.3136985]
[1610396054990,4.00959,971.04,970.88,0.31373309]
[1610396055389,4.00959,971.04,970.77,0.3137478]
[1610396055590,4.00959,971.04,970.63,0.31378652]
[1610396055789,2.241,971.96,970.63,0.31378652]
[1610396055989,2.241,971.96,970.75,0.313725]
[1610396056190,2.241,971.96,970.75,2.316725]
[1610396056391,2.241,971.96,970.96,0.31368955]
[1610396056592,2.241,971.96,971.15,4.00959]
[1610396056991,5.8819,972.45,971.15,4.00959]
[1610396057190,5.8819,972.45,971.25,0.31360555]
[1610396057391,2.0853,972.44,971.31,0.31357248]
[1610396057592,4.3843,972.44,971.31,0.31357248]
[1610396057792,4.3843,972.44,971.25,2.19]
[1610396057793,30.0,972.34,971.25,2.19]
[1610396057992,30.0,971.69,971.25,0.12]
[1610396058192,32.0586,971.68,970.64,1.25478101]
[1610396058392,2.0586,971.68,970.64,1.25478101]
[1610396058593,4.00959,970.76,970.75,0.093]
[1610396058794,4.00959,970.76,970.43,1.25515116]
[1610396058993,4.00959,970.76,970.28,1.25529693]
[1610396059194,4.00959,970.76,970.34,1.25516123]
[1610396059393,1.903,971.69,970.34,2.84116123]
[1610396059593,1.903,971.69,970.41,1.25511435]
[1610396059992,1.903,971.69,970.46,1.25505599]
[1610396060193,1.903,971.69,970.51,1.25500583]
[1610396060994,1.903,971.69,970.53,1.25498225]
[1610396061193,1.903,971.69,970.45,1.25499167]
[1610396061597,1.903,971.69,970.36,1.25500193]
[1610396061995,30.0,971.27,970.36,1.25500193]
[1610396062194,1.533,971.33,970.36,1.25500193]
[1610396062396,1.533,971.33,970.34,1.586]
[1610396064196,1.533,971.33,970.11,1.25551428]
[1610396064395,1.533,971.33,970.01,1.56939285]
[1610396064396,8.802,971.32,970.01,1.2556669]
[1610396064595,4.00959,970.02,970.01,1.2556669]
[1610396064803,2.406,970.68,969.98,1.25566665]
[1610396064999,8.802,971.32,970.09,1.25559156]
[1610396065399,8.802,971.32,970.06,1.25544228]
[1610396065698,10.34,971.32,970.14,1.2554428]
[1610396066198,10.34,971.32,970.16,1.255376]
[1610396066600,4.00959,970.6,970.2,1.25534957]
[1610396066999,4.00959,970.6,970.21,1.25536538]
[1610396067199,4.00959,970.6,970.21,1.658]
[1610396068500,32.0372,971.29,970.5,0.31383619]
[1610396068700,32.0372,971.29,970.5,1.94783619]
[1610396068902,32.0372,971.29,970.5,1.634]
[1610396069699,32.0372,971.29,970.07,0.94168875]
[1610396069700,32.0372,971.29,970.18,0.31391985]
[1610396069901,34.0782,971.29,970.18,0.31391985]
[1610396070100,34.0782,971.29,970.05,0.31396027]
[1610396070300,30.0,970.63,969.86,0.9418808]
[1610396070500,4.00959,969.87,969.86,0.3021808]
[1610396070700,4.00959,969.87,969.7,0.94203309]
[1610396071700,4.00959,969.87,969.67,0.94214839]
[1610396071915,4.00959,969.87,969.75,0.94206195]
[1610396072302,4.00959,969.87,969.68,0.94205367]
[1610396072501,2.078,970.63,969.58,1.518]
[1610396072502,4.00959,969.69,969.66,0.94210025]
[1610396072901,4.00959,969.69,969.63,0.9421125]
[1610396073102,4.00959,969.69,969.53,1.25615]
[1610396073302,4.00959,969.69,969.55,0.94217374]
[1610396073903,2.387,970.33,969.59,0.94213896]
[1610396074103,2.387,970.33,969.64,0.94210724]
[1610396074505,2.387,970.33,969.67,0.94206849]
[1610396074904,2.387,970.33,969.71,0.94204647]
[1610396075304,2.387,970.33,969.61,0.94205804]
[1610396075505,2.387,970.33,969.59,0.94211329]
[1610396075905,2.387,970.33,969.53,0.94218887]
[1610396076306,2.387,970.33,969.48,0.94226955]
[1610396076505,4.00959,969.6,969.48,0.94226955]
[1610396076707,2.387,970.33,969.55,0.94221526]
[1610396076708,2.296,969.87,969.55,0.94221526]
[1610396076906,2.387,970.33,969.55,0.94221526]
[1610396077109,2.387,970.33,969.63,0.9421718]
[1610396077308,2.387,970.33,969.69,0.94210436]
[1610396077508,2.078,970.63,969.69,0.94210436]
[1610396077709,6.2323,970.69,969.86,0.94195174]
[1610396077908,6.2323,970.69,969.55,1.891]
[1610396077909,6.2323,970.69,969.98,0.94184661]
[1610396078308,6.2323,970.69,970.06,0.94175979]
[1610396078507,6.2323,970.69,970.06,3.36275979]
[1610396078707,4.00959,970.07,970.06,2.421]
[1610396080309,4.00959,970.07,969.82,0.94189158]
[1610396080710,4.00959,970.07,969.24,2.51171089]
[1610396080711,4.00959,969.83,969.8,0.31404351]
[1610396080913,4.00959,969.83,969.61,0.94213054]
[1610396081111,6.08359,969.83,969.61,0.94213054]
[1610396081311,6.08359,969.83,969.47,0.94217912]
[1610396081711,6.08359,969.83,968.89,2.51247766]
[1610396081712,6.08359,969.83,969.29,0.94234446]
[1610396081911,6.08359,969.83,969.21,0.94234826]
[1610396082612,4.00959,969.22,969.21,0.94234826]
[1610396083013,4.00959,969.22,969.09,1.2565682]
[1610396083413,4.00959,969.22,969.1,1.25658331]
[1610396083812,4.00959,969.22,969.03,1.25664076]
[1610396084013,4.00959,969.22,968.8,1.57112535]
[1610396084413,1.916,969.22,968.44,1.88548732]
[1610396084816,4.00959,968.45,968.33,1.88580617]
[1610396085214,4.00959,968.45,968.21,1.8859933]
[1610396085614,4.00959,968.45,968.13,1.88618725]
[1610396086015,4.00959,968.45,968.07,1.88611846]
[1610396086415,4.00959,968.45,968.06,1.88609706]
[1610396086617,4.00959,968.45,967.95,1.8864121]
[1610396086815,4.00959,967.96,967.95,1.8864121]
[1610396087016,4.00959,967.96,967.93,1.88651517]
[1610396087419,34.00959,967.96,967.84,1.88659439]
[1610396087816,4.00959,967.96,967.77,1.88678411]
[1610396088216,4.00959,967.96,967.7,1.88693946]
[1610396088816,4.00959,967.96,966.83,4.40285874]
[1610396088817,4.00959,967.71,967.55,1.88720366]
[1610396089216,4.00959,967.71,967.5,1.88731367]
[1610396089631,4.00959,967.71,967.41,1.88744508]
[1610396089920,34.00959,967.71,967.33,1.88772012]
[1610396090418,34.00959,967.71,967.29,1.88776552]
[1610396090818,4.00959,967.3,967.29,1.88776552]
[1610396091018,4.00959,967.3,966.42,4.4047862]
[1610396091019,4.00959,967.3,967.2,1.88795151]
[1610396091620,4.00959,967.3,967.11,1.88816982]
[1610396091820,4.00959,967.3,967.2,1.88803793]
[1610396092020,4.00959,967.3,967.2,3.74403793]
[1610396092220,4.00959,967.3,967.2,1.856]
[1610396092820,34.00959,967.3,967.2,1.856]
[1610396093020,4.00959,967.3,967.2,1.856]
[1610396093421,34.00959,967.3,967.2,1.856]
[1610396093621,64.5331,967.23,967.2,1.676]
[1610396093821,94.5331,967.23,967.2,1.676]
[1610396094424,64.5331,967.23,967.22,0.62957627]
[1610396094625,4.00959,967.3,967.22,0.62957627]
[1610396094825,4.00959,967.3,967.2,1.676]
[1610396095026,4.00959,967.3,967.29,0.62955692]
[1610396095425,4.00959,967.3,967.28,0.94434253]
[1610396095824,4.00959,967.3,967.2,1.676]
[1610396095825,4.00959,967.3,967.24,1.57362765]
[1610396096226,4.00959,967.3,967.2,1.676]
[1610396097226,4.00959,967.3,967.17,1.88795229]
[1610396097627,4.00959,967.3,967.22,1.88794995]
[1610396098026,4.00959,967.3,967.16,1.88798835]
[1610396098225,4.00959,967.3,967.14,1.88801733]
[1610396098625,4.00959,967.3,967.2,1.88790292]
[1610396098827,4.00959,967.3,967.2,3.50690292]
[1610396099027,34.00959,967.3,967.2,1.619]
[1610396099228,34.00959,967.3,967.2,1.5072]
[1610396099428,34.00959,967.3,967.21,0.76578453]
[1610396099628,34.00959,967.3,967.12,1.57348066]
[1610396099828,34.00959,967.3,966.73,0.16944586]
[1610396100030,34.00959,967.3,967.15,0.05305757]
[1610396100230,36.28259,967.3,966.49,2.25031514]
[1610396100431,36.28259,967.3,966.99,0.31487848]
[1610396100832,4.00959,967.0,966.71,0.62985595]
[1610396101031,30.0,966.89,966.71,0.62985595]
[1610396101232,30.0,966.89,965.84,3.14927975]
[1610396101233,30.0,966.89,966.58,0.62994386]
[1610396101634,30.0,966.89,966.47,0.63003147]
[1610396101834,30.0,966.89,966.38,0.52247867]
[1610396102034,8.28243089,966.87,965.89,1.89028279]
[1610396102234,30.0,966.77,965.83,1.89075883]
[1610396102434,1.703,966.77,965.83,1.89075883]
[1610396102634,1.703,966.77,965.86,1.89030275]
[1610396102835,4.00959,965.87,965.86,1.89030275]
[1610396103034,4.00959,965.87,965.86,2.195]
[1610396103439,1.585,967.02,965.86,2.195]
[1610396104036,1.585,967.02,966.05,1.89001293]
[1610396104236,1.585,967.02,966.22,1.889981]
[1610396104636,1.585,967.02,966.22,4.207981]
[1610396104836,4.00959,966.23,966.22,2.318]
[1610396106137,4.00959,966.23,965.86,2.195]
[1610396106838,4.00959,965.87,965.86,2.195]
[1610396107238,4.00959,965.87,965.55,1.89090234]
[1610396107438,4.00959,965.87,965.47,1.89104442]
[1610396107839,4.00959,965.87,965.55,1.89098225]
[1610396108041,4.00959,965.87,965.55,3.87298225]
[1610396108641,4.00959,965.87,965.55,1.982]
[1610396109041,4.00959,965.56,965.55,1.982]
[1610396109441,4.00959,965.56,965.37,1.89154929]
[1610396109642,4.00959,965.56,965.33,1.89167971]
[1610396110043,4.00959,965.56,965.52,1.26120558]
[1610396110244,4.00959,965.56,965.39,1.26147058]
[1610396110648,4.00959,965.56,965.5,0.31537998]